lending/lending_fUSD_20250719
["ID","MTS","AMOUNT","RATE_DAILY","PERIOD"]
[373344317,1752955851229,-1154.7,0.00019178,2]
[373344318,1752955851239,-712.79,0.00019178,2]
[373344319,1752955851248,-500.0,0.00019178,2]
[373344320,1752955851257,-1187.45,0.00019178,2]
[373344321,1752955851266,-329.78018739,0.00019178,2]
[373344322,1752955851276,-480.0,0.00019178,2]
[373344323,1752955851285,-500.0,0.00019178,2]
[373344324,1752955851295,-1429.45,0.00019178,2]
[373344325,1752955851305,-500.0,0.00019178,2]
[373344326,1752955851315,-500.0,0.00019178,2]
[373344327,1752955851324,-500.0,0.00019178,2]
[373344328,1752955851333,-500.0,0.00019178,2]
[373344329,1752955851343,-497.33,0.00019178,2]
[373344330,1752955851352,-480.0,0.00019178,2]
[373344331,1752955851361,-480.0,0.00019178,2]
[373344332,1752955851370,-518.8333754,0.00019178,2]
[373344333,1752955851379,-3871.48,0.00019178,2]
[373344334,1752955851388,-480.0,0.00019178,2]
[373344335,1752955851398,-621.42,0.00019178,2]
[373344336,1752955851407,-500.0,0.00019178,2]
[373344337,1752955851416,-480.0,0.00019178,2]
[373344338,1752955851426,-496.84650903,0.00019178,2]
[373344339,1752955851435,-599.74,0.00019178,2]
[373344340,1752955851444,-480.0,0.00019178,2]
[373344341,1752955851454,-567.17,0.00019178,2]
[373344342,1752955851463,-26966.98568082,0.00019178,2]
[373344343,1752955851473,-291.0,0.00019182,2]
[373344344,1752955851482,-6366.78494688,0.00019207,2]
[373344345,1752955851492,-826.29186992,0.0001921,2]
[373344346,1752955851501,-150.0,0.00019214,2]
[373344347,1752955851510,-1314.979,0.00019222,2]
[373344348,1752955851520,-185.465,0.00019222,2]
[373344349,1752955851530,-280.57478389,0.00019224,2]
[373344350,1752955851539,-433.82,0.00019233,2]
[373344351,1752955851548,-826.29186992,0.00019245,2]
[373344352,1752955851560,-365.91297484,0.00019251,2]
[373344353,1752955851569,-476.80070012,0.00019254,2]
[373344354,1752955851579,-210.82967408,0.00019254,2]
[373344355,1752955851587,-160.0,0.00019254,2]
[373344356,1752955851597,-839.16344753,0.00019254,2]
[373344357,1752955851606,-365.91297484,0.00019268,2]
[373344358,1752955851615,-500.0,0.00019273,2]
[373344359,1752955851624,-826.29186992,0.00019279,2]
[373344360,1752955851634,-500.0,0.00019285,2]
[373344361,1752955851644,-365.91297484,0.00019285,2]
[373344362,1752955851653,-460.0,0.00019286,2]
[373344363,1752955851663,-480.0,0.00019286,2]
[373344364,1752955851673,-480.0,0.00019286,2]
[373344365,1752955851683,-480.0,0.00019286,2]
[373344366,1752955851692,-460.0,0.00019286,2]
[373344367,1752955851702,-460.0,0.00019286,2]
[373344368,1752955851711,-480.0,0.00019286,2]
[373344369,1752955851721,-480.0,0.00019286,2]
[373344370,1752955851730,-500.0,0.00019286,2]
[373344371,1752955851740,-500.0,0.00019286,2]
[373344372,1752955851750,-500.0,0.00019286,2]
[373344373,1752955851759,-500.0,0.00019286,2]
[373344374,1752955851769,-1566.34,0.00019286,2]
[373344375,1752955851779,-1566.34,0.00019286,2]
[373344376,1752955851788,-500.0,0.00019286,2]
[373344377,1752955851798,-500.0,0.00019286,2]
[373344378,1752955851809,-6858.94,0.00019286,2]
[373344379,1752955851819,-844.01,0.00019286,2]
[373344380,1752955851829,-1055.47,0.00019286,2]
[373344381,1752955851838,-2048.44,0.00019286,2]
[373344382,1752955851847,-1683.99,0.00019286,2]
[373344383,1752955851857,-3064.31,0.00019286,2]
[373344384,1752955851867,-3314.27,0.00019286,2]
[373344385,1752955851877,-480.0,0.00019286,2]
[373344386,1752955851886,-808.49,0.00019286,2]
[373344387,1752955851895,-612.86,0.00019286,2]
[373344388,1752955851904,-730.51,0.00019286,2]
[373344389,1752955851916,-1643.89,0.00019286,2]
[373344390,1752955851926,-662.98,0.00019286,2]
[373344391,1752955851935,-510.38,0.00019286,2]
[373344392,1752955851944,-500.0,0.00019286,2]
[373344393,1752955851954,-500.0,0.00019286,2]
[373344394,1752955851963,-1027.26,0.00019286,2]
[373344395,1752955851973,-480.0,0.00019286,2]
[373344396,1752955851983,-500.0,0.00019286,2]
[373344397,1752955851992,-500.0,0.00019286,2]
[373344398,1752955852002,-667.23,0.00019286,2]
[373344399,1752955852011,-151.0,0.00019287,2]
[373344400,1752955852020,-151.0,0.00019287,2]
[373344401,1752955852030,-151.0,0.00019287,2]
[373344402,1752955852039,-151.0,0.00019287,2]
[373344403,1752955852048,-151.0,0.00019287,2]
[373344404,1752955852064,-151.0,0.00019287,2]
[373344405,1752955852074,-151.0,0.00019287,2]
[373344406,1752955852083,-151.0,0.00019287,2]
[373344407,1752955852092,-151.0,0.00019287,2]
[373344408,1752955852102,-151.0,0.00019287,2]
[373344409,1752955852111,-151.0,0.00019287,2]
[373344410,1752955852121,-151.0,0.00019287,2]
[373344411,1752955852131,-152.763305,0.00019287,2]
[373344412,1752955852141,-460.0,0.00019287,2]
[373344413,1752955852151,-480.0,0.00019287,2]
[373344414,1752955852160,-238.534405,0.00019287,2]
[373344415,1752955852169,-480.0,0.00019287,2]
[373344416,1752955852179,-480.0,0.00019287,2]
[373344417,1752955852188,-151.0,0.00019287,2]
[373344418,1752955852197,-151.0,0.00019287,2]
[373344419,1752955852207,-151.0,0.00019287,2]
[373344420,1752955852216,-151.0,0.00019287,2]
[373344421,1752955852225,-155.532021,0.00019287,2]
[373344422,1752955852235,-160.694467,0.00019287,2]
[373344423,1752955852244,-160.694467,0.00019287,2]
[373344424,1752955852254,-160.694467,0.00019287,2]
[373344425,1752955852264,-160.694467,0.00019287,2]
[373344426,1752955852274,-480.0,0.00019287,2]
[373344427,1752955852284,-480.0,0.00019287,2]
[373344428,1752955852294,-473.5,0.00019287,2]
[373344429,1752955852304,-210.279908,0.00019287,2]
[373344430,1752955852315,-210.279908,0.00019287,2]
[373344431,1752955852324,-480.0,0.00019287,2]
[373344432,1752955852335,-678.32,0.00019287,2]
[373344433,1752955852346,-210.279908,0.00019287,2]
[373344434,1752955852356,-210.279908,0.00019287,2]
[373344435,1752955852366,-480.0,0.00019287,2]
[373344436,1752955852375,-151.871849,0.00019287,2]
[373344437,1752955852386,-480.0,0.00019287,2]
[373344438,1752955852396,-480.0,0.00019287,2]
[373344439,1752955852406,-480.0,0.00019287,2]
[373344440,1752955852416,-480.0,0.00019287,2]
[373344441,1752955852426,-480.0,0.00019287,2]
[373344442,1752955852436,-480.0,0.00019287,2]
[373344443,1752955852446,-400.0,0.00019287,2]
[373344444,1752955852456,-480.0,0.00019287,2]
[373344445,1752955852466,-480.0,0.00019287,2]
[373344446,1752955852476,-480.0,0.00019287,2]
[373344447,1752955852485,-480.0,0.00019287,2]
[373344448,1752955852495,-182.784398,0.00019287,2]
[373344449,1752955852506,-182.784398,0.00019287,2]
[373344450,1752955852516,-150.0,0.00019287,2]
[373344451,1752955852525,-182.784398,0.00019287,2]
[373344452,1752955852535,-225.68192293,0.00019287,2]
[373344453,1752955852545,-182.784398,0.00019287,2]
[373344454,1752955852554,-500.0,0.00019287,2]
[373344455,1752955852564,-440.0,0.00019287,2]
[373344456,1752955852574,-500.0,0.00019287,2]
[373344457,1752955852584,-480.0,0.00019287,2]
[373344458,1752955852593,-480.0,0.00019287,2]
[373344459,1752955852602,-480.0,0.00019287,2]
[373344460,1752955852612,-480.0,0.00019287,2]
[373344461,1752955852621,-480.0,0.00019287,2]
[373344462,1752955852631,-480.0,0.00019287,2]
[373344463,1752955852640,-480.0,0.00019287,2]
[373344464,1752955852650,-480.0,0.00019287,2]
[373344465,1752955852659,-480.0,0.00019287,2]
[373344466,1752955852669,-480.0,0.00019287,2]
[373344467,1752955852679,-480.0,0.00019287,2]
[373344468,1752955852689,-480.0,0.00019287,2]
[373344469,1752955852698,-151.0,0.00019287,2]
[373344470,1752955852708,-480.0,0.00019287,2]
[373344471,1752955852718,-151.0,0.00019287,2]
[373344472,1752955852727,-480.0,0.00019287,2]
[373344473,1752955852737,-480.0,0.00019287,2]
[373344474,1752955852746,-480.0,0.00019287,2]
[373344475,1752955852755,-480.0,0.00019287,2]
[373344476,1752955852765,-423.89772757,0.00019287,2]
[373344477,1752955852775,-480.0,0.00019287,2]
[373344478,1752955852784,-440.0,0.00019287,2]
[373344479,1752955852794,-480.0,0.00019287,2]
[373344480,1752955852805,-480.0,0.00019287,2]
[373344481,1752955852815,-480.0,0.00019287,2]
[373344482,1752955852825,-440.0,0.00019287,2]
[373344483,1752955852835,-480.0,0.00019287,2]
[373344484,1752955852844,-609.76707606,0.00019287,2]
[373344485,1752955852854,-480.0,0.00019287,2]
[373344486,1752955852864,-480.0,0.00019287,2]
[373344487,1752955852873,-400.0,0.00019287,2]
[373344488,1752955852883,-480.0,0.00019287,2]
[373344489,1752955852893,-721.54,0.00019287,2]
[373344490,1752955852903,-530.5,0.00019287,2]
[373344491,1752955852913,-480.0,0.00019287,2]
[373344492,1752955852923,-554.49,0.00019287,2]
[373344493,1752955852932,-480.0,0.00019287,2]
[373344494,1752955852942,-480.0,0.00019287,2]
[373344495,1752955852951,-480.0,0.00019287,2]
[373344496,1752955852962,-559.27,0.00019287,2]
[373344497,1752955852972,-480.0,0.00019287,2]
[373344498,1752955852981,-480.0,0.00019287,2]
[373344499,1752955852991,-502.04,0.00019287,2]
[373344500,1752955853001,-480.0,0.00019287,2]
[373344501,1752955853011,-480.0,0.00019287,2]
[373344502,1752955853021,-964.66,0.00019287,2]
[373344503,1752955853030,-480.0,0.00019287,2]
[373344504,1752955853040,-480.0,0.00019287,2]
[373344505,1752955853050,-480.0,0.00019287,2]
[373344506,1752955853063,-480.0,0.00019287,2]
[373344507,1752955853073,-480.0,0.00019287,2]
[373344508,1752955853083,-480.0,0.00019287,2]
[373344509,1752955853093,-480.0,0.00019287,2]
[373344510,1752955853103,-480.0,0.00019287,2]
[373344511,1752955853113,-480.0,0.00019287,2]
[373344512,1752955853122,-480.0,0.00019287,2]
[373344513,1752955853132,-480.0,0.00019287,2]
[373344514,1752955853142,-480.0,0.00019287,2]
[373344515,1752955853152,-974.37,0.00019287,2]
[373344516,1752955853161,-480.0,0.00019287,2]
[373344517,1752955853171,-480.0,0.00019287,2]
[373344518,1752955853181,-480.0,0.00019287,2]
[373344519,1752955853191,-480.0,0.00019287,2]
[373344520,1752955853201,-487.03,0.00019287,2]
[373344521,1752955853211,-340.0,0.00019287,2]
[373344522,1752955853221,-480.0,0.00019287,2]
[373344523,1752955853234,-480.0,0.00019287,2]
[373344524,1752955853243,-480.0,0.00019287,2]
[373344525,1752955853253,-480.0,0.00019287,2]
[373344526,1752955853263,-480.0,0.00019287,2]
[373344527,1752955853273,-480.0,0.00019287,2]
[373344528,1752955853283,-480.0,0.00019287,2]
[373344529,1752955853293,-480.0,0.00019287,2]
[373344530,1752955853303,-480.0,0.00019287,2]
[373344531,1752955853314,-480.0,0.00019287,2]
[373344532,1752955853324,-480.0,0.00019287,2]
[373344533,1752955853333,-480.0,0.00019287,2]
[373344534,1752955853343,-651.74,0.00019287,2]
[373344535,1752955853353,-480.0,0.00019287,2]
[373344536,1752955853363,-480.0,0.00019287,2]
[373344537,1752955853373,-480.0,0.00019287,2]
[373344538,1752955853382,-753.17,0.00019287,2]
[373344539,1752955853392,-480.0,0.00019287,2]
[373344540,1752955853402,-480.0,0.00019287,2]
[373344541,1752955853411,-480.0,0.00019287,2]
[373344542,1752955853421,-480.0,0.00019287,2]
[373344543,1752955853431,-480.0,0.00019287,2]
[373344544,1752955853441,-480.0,0.00019287,2]
[373344545,1752955853450,-480.0,0.00019287,2]
[373344546,1752955853460,-480.0,0.00019287,2]
[373344547,1752955853469,-480.0,0.00019287,2]
[373344548,1752955853479,-1174.86,0.00019287,2]
[373344549,1752955853489,-480.0,0.00019287,2]
[373344550,1752955853498,-480.0,0.00019287,2]
[373344551,1752955853508,-480.0,0.00019287,2]
[373344552,1752955853517,-480.0,0.00019287,2]
[373344553,1752955853527,-480.0,0.00019287,2]
[373344554,1752955853537,-732.97,0.00019287,2]
[373344555,1752955853547,-480.0,0.00019287,2]
[373344556,1752955853557,-480.0,0.00019287,2]
[373344557,1752955853568,-480.0,0.00019287,2]
[373344558,1752955853578,-480.0,0.00019287,2]
[373344559,1752955853588,-480.0,0.00019287,2]
[373344560,1752955853598,-480.0,0.00019287,2]
[373344561,1752955853608,-492.14,0.00019287,2]
[373344562,1752955853618,-480.0,0.00019287,2]
[373344563,1752955853628,-480.0,0.00019287,2]
[373344564,1752955853637,-480.0,0.00019287,2]
[373344565,1752955853647,-655.04,0.00019287,2]
[373344566,1752955853657,-498.94,0.00019287,2]
[373344567,1752955853667,-480.0,0.00019287,2]
[373344568,1752955853677,-480.0,0.00019287,2]
[373344569,1752955853687,-1041.28,0.00019287,2]
[373344570,1752955853697,-554.71,0.00019287,2]
[373344571,1752955853707,-480.0,0.00019287,2]
[373344572,1752955853717,-480.0,0.00019287,2]
[373344573,1752955853727,-480.0,0.00019287,2]
[373344574,1752955853738,-520.0,0.00019287,2]
[373344575,1752955853748,-638.96,0.00019287,2]
[373344576,1752955853758,-576.85,0.00019287,2]
[373344577,1752955853769,-480.0,0.00019287,2]
[373344578,1752955853780,-559.6,0.00019287,2]
[373344579,1752955853790,-480.0,0.00019287,2]
[373344580,1752955853800,-480.0,0.00019287,2]
[373344581,1752955853810,-480.0,0.00019287,2]
[373344582,1752955853820,-886.98,0.00019287,2]
[373344583,1752955853830,-1785.27,0.00019287,2]
[373344584,1752955853841,-564.56,0.00019287,2]
[373344585,1752955853852,-480.0,0.00019287,2]
[373344586,1752955853863,-480.0,0.00019287,2]
[373344587,1752955853872,-745.25,0.00019287,2]
[373344588,1752955853882,-480.0,0.00019287,2]
[373344589,1752955853892,-480.0,0.00019287,2]
[373344590,1752955853903,-831.85,0.00019287,2]
[373344591,1752955853913,-480.0,0.00019287,2]
[373344592,1752955853923,-480.0,0.00019287,2]
[373344593,1752955853934,-480.0,0.00019287,2]
[373344594,1752955853944,-480.0,0.00019287,2]
[373344595,1752955853954,-480.0,0.00019287,2]
[373344596,1752955853964,-480.0,0.00019287,2]
[373344597,1752955853974,-480.0,0.00019287,2]
[373344598,1752955853984,-480.0,0.00019287,2]
[373344599,1752955853994,-480.0,0.00019287,2]
[373344600,1752955854003,-480.0,0.00019287,2]
[373344601,1752955854013,-480.0,0.00019287,2]
[373344602,1752955854023,-480.0,0.00019287,2]
[373344603,1752955854033,-480.0,0.00019287,2]
[373344604,1752955854043,-480.0,0.00019287,2]
[373344605,1752955854055,-480.0,0.00019287,2]
[373344606,1752955854067,-480.0,0.00019287,2]
[373344607,1752955854077,-480.0,0.00019287,2]
[373344608,1752955854086,-717.73,0.00019287,2]
[373344609,1752955854096,-480.0,0.00019287,2]
[373344610,1752955854107,-529.45,0.00019287,2]
[373344611,1752955854117,-480.0,0.00019287,2]
[373344612,1752955854126,-480.0,0.00019287,2]
[373344613,1752955854137,-480.0,0.00019287,2]
[373344614,1752955854147,-480.0,0.00019287,2]
[373344615,1752955854157,-480.0,0.00019287,2]
[373344616,1752955854167,-480.0,0.00019287,2]
[373344617,1752955854176,-480.0,0.00019287,2]
[373344618,1752955854186,-480.0,0.00019287,2]
[373344619,1752955854196,-480.0,0.00019287,2]
[373344620,1752955854205,-480.0,0.00019287,2]
[373344621,1752955854215,-480.0,0.00019287,2]
[373344622,1752955854224,-480.0,0.00019287,2]
[373344623,1752955854234,-480.0,0.00019287,2]
[373344624,1752955854244,-480.0,0.00019287,2]
[373344625,1752955854253,-480.0,0.00019287,2]
[373344626,1752955854263,-767.94,0.00019287,2]
[373344627,1752955854273,-480.0,0.00019287,2]
[373344628,1752955854283,-613.38,0.00019287,2]
[373344629,1752955854294,-480.0,0.00019287,2]
[373344630,1752955854305,-150.43017786,0.00019287,2]
[373344631,1752955854315,-480.0,0.00019287,2]
[373344632,1752955854325,-480.0,0.00019287,2]
[373344633,1752955854335,-480.0,0.00019287,2]
[373344634,1752955854345,-480.0,0.00019287,2]
[373344635,1752955854355,-480.0,0.00019287,2]
[373344636,1752955854366,-480.0,0.00019287,2]
[373344637,1752955854376,-480.0,0.00019287,2]
[373344638,1752955854386,-480.0,0.00019287,2]
[373344639,1752955854396,-480.0,0.00019287,2]
[373344640,1752955854406,-480.0,0.00019287,2]
[373344641,1752955854418,-300.0,0.00019287,2]
[373344642,1752955854428,-491.96,0.00019287,2]
[373344643,1752955854437,-480.0,0.00019287,2]
[373344644,1752955854447,-280.0,0.00019287,2]
[373344645,1752955854457,-443.14234919,0.00019287,2]
[373344646,1752955854466,-480.0,0.00019287,2]
[373344647,1752955854476,-964.48,0.00019287,2]
[373344648,1752955854487,-888.67,0.00019287,2]
[373344649,1752955854496,-732.75,0.00019287,2]
[373344650,1752955854507,-480.0,0.00019287,2]
[373344651,1752955854517,-657.08,0.00019287,2]
[373344652,1752955854527,-816.83,0.00019287,2]
[373344653,1752955854538,-819.85,0.00019287,2]
[373344654,1752955854548,-480.0,0.00019287,2]
[373344655,1752955854559,-530.47,0.00019287,2]
[373344656,1752955854569,-480.0,0.00019287,2]
[373344657,1752955854580,-480.0,0.00019287,2]
[373344658,1752955854591,-480.0,0.00019287,2]
[373344659,1752955854601,-480.0,0.00019287,2]
[373344660,1752955854611,-480.0,0.00019287,2]
[373344661,1752955854621,-480.0,0.00019287,2]
[373344662,1752955854631,-300.0,0.00019287,2]
[373344663,1752955854641,-613.59,0.00019287,2]
[373344664,1752955854652,-480.0,0.00019287,2]
[373344665,1752955854662,-480.0,0.00019287,2]
[373344666,1752955854672,-480.0,0.00019287,2]
[373344667,1752955854682,-480.0,0.00019287,2]
[373344668,1752955854692,-609.21,0.00019287,2]
[373344669,1752955854702,-1355.52,0.00019287,2]
[373344670,1752955854712,-885.49,0.00019287,2]
[373344671,1752955854723,-480.0,0.00019287,2]
[373344672,1752955854733,-201.82776388,0.00019287,2]
[373344673,1752955854743,-480.0,0.00019287,2]
[373344674,1752955854754,-480.0,0.00019287,2]
[373344675,1752955854764,-480.0,0.00019287,2]
[373344676,1752955854774,-480.0,0.00019287,2]
[373344677,1752955854783,-722.76,0.00019287,2]
[373344678,1752955854793,-480.0,0.00019287,2]
[373344679,1752955854804,-480.0,0.00019287,2]
[373344680,1752955854815,-480.0,0.00019287,2]
[373344681,1752955854826,-319.12,0.00019287,2]
[373344682,1752955854839,-480.0,0.00019287,2]
[373344683,1752955854849,-581.93,0.00019287,2]
[373344684,1752955854859,-480.0,0.00019287,2]
[373344685,1752955854869,-480.0,0.00019287,2]
[373344686,1752955854879,-293.14245466,0.00019287,2]
[373344687,1752955854889,-480.0,0.00019287,2]
[373344688,1752955854899,-480.0,0.00019287,2]
[373344689,1752955854908,-480.0,0.00019287,2]
[373344690,1752955854918,-480.0,0.00019287,2]
[373344691,1752955854928,-480.0,0.00019287,2]
[373344692,1752955854937,-480.0,0.00019287,2]
[373344693,1752955854948,-480.0,0.00019287,2]
[373344694,1752955854958,-256.29,0.00019287,2]
[373344695,1752955854967,-480.0,0.00019287,2]
[373344696,1752955854977,-506.23,0.00019287,2]
[373344697,1752955854987,-741.96,0.00019287,2]
[373344698,1752955854997,-480.0,0.00019287,2]
[373344699,1752955855006,-546.38,0.00019287,2]
[373344700,1752955855016,-460.88070292,0.00019287,2]
[373344701,1752955855025,-480.0,0.00019287,2]
[373344702,1752955855035,-480.0,0.00019287,2]
[373344703,1752955855045,-480.0,0.00019287,2]
[373344704,1752955855059,-480.0,0.00019287,2]
[373344705,1752955855072,-480.0,0.00019287,2]
[373344706,1752955855083,-704.95,0.00019287,2]
[373344707,1752955855095,-293.72,0.00019287,2]
[373344708,1752955855281,-480.0,0.00019287,2]
[373344709,1752955855314,-826.15,0.00019287,2]
[373344710,1752955855324,-480.0,0.00019287,2]
[373344711,1752955855333,-480.0,0.00019287,2]
[373344712,1752955855343,-480.0,0.00019287,2]
[373344713,1752955855352,-480.0,0.00019287,2]
[373344714,1752955855361,-480.0,0.00019287,2]
[373344715,1752955855371,-745.45,0.00019287,2]
[373344716,1752955855380,-1281.26,0.00019287,2]
[373344717,1752955855390,-1348.73,0.00019287,2]
[373344718,1752955855399,-1922.14,0.00019287,2]
[373344719,1752955855408,-480.0,0.00019287,2]
[373344720,1752955855418,-480.0,0.00019287,2]
[373344721,1752955855427,-480.0,0.00019287,2]
[373344722,1752955855436,-480.0,0.00019287,2]
[373344723,1752955855446,-743.93,0.00019287,2]
[373344724,1752955855455,-1563.31,0.00019287,2]
[373344725,1752955855464,-480.0,0.00019287,2]
[373344726,1752955855474,-547.56,0.00019287,2]
[373344727,1752955855483,-518.28,0.00019287,2]
[373344728,1752955855493,-909.01,0.00019287,2]
[373344729,1752955855502,-173.26124263,0.00019287,2]
[373344730,1752955855512,-1805.29,0.00019287,2]
[373344731,1752955855521,-480.0,0.00019287,2]
[373344732,1752955855531,-480.0,0.00019287,2]
[373344733,1752955855541,-820.77,0.00019287,2]
[373344734,1752955855550,-2398.95,0.00019287,2]
[373344735,1752955855560,-632.78,0.00019287,2]
[373344736,1752955855570,-1245.48,0.00019287,2]
[373344737,1752955855579,-480.0,0.00019287,2]
[373344738,1752955855589,-632.21,0.00019287,2]
[373344739,1752955855598,-798.51,0.00019287,2]
[373344740,1752955855608,-1198.9,0.00019287,2]
[373344741,1752955855617,-480.0,0.00019287,2]
[373344742,1752955855627,-2457.6,0.00019287,2]
[373344743,1752955855636,-500.0,0.00019287,2]
[373344744,1752955855646,-1253.7,0.00019287,2]
[373344745,1752955855655,-500.0,0.00019287,2]
[373344746,1752955855665,-480.0,0.00019287,2]
[373344747,1752955855674,-3716.29,0.00019287,2]
[373344748,1752955855684,-1275.3,0.00019287,2]
[373344749,1752955855694,-480.0,0.00019287,2]
[373344750,1752955855703,-500.0,0.00019287,2]
[373344751,1752955855713,-5499.79,0.00019287,2]
[373344752,1752955855722,-500.0,0.00019287,2]
[373344753,1752955855732,-2115.11,0.00019287,2]
[373344754,1752955855742,-150.0,0.00019287,2]
[373344755,1752955855751,-480.0,0.00019287,2]
[373344756,1752955855761,-150.0,0.00019287,2]
[373344757,1752955855771,-150.0,0.00019287,2]
[373344758,1752955855781,-1161.68,0.00019287,2]
[373344759,1752955855791,-204.9337995,0.00019287,2]
[373344760,1752955855800,-480.0,0.00019287,2]
[373344761,1752955855810,-150.0,0.00019287,2]
[373344762,1752955855820,-1729.51,0.00019287,2]
[373344763,1752955855830,-150.0,0.00019287,2]
[373344764,1752955855840,-2591.6,0.00019287,2]
[373344765,1752955855849,-480.0,0.00019287,2]
[373344766,1752955855859,-480.0,0.00019287,2]
[373344767,1752955855868,-150.0,0.00019287,2]
[373344768,1752955855878,-1454.52,0.00019287,2]
[373344769,1752955855887,-209.05947104,0.00019287,2]
[373344770,1752955855897,-1228.37,0.00019287,2]
[373344771,1752955855907,-480.0,0.00019287,2]
[373344772,1752955855917,-480.0,0.00019287,2]
[373344773,1752955855926,-610.15,0.00019287,2]
[373344774,1752955855936,-1212.77,0.00019287,2]
[373344775,1752955855946,-480.0,0.00019287,2]
[373344776,1752955855955,-964.58,0.00019287,2]
[373344777,1752955855965,-480.0,0.00019287,2]
[373344778,1752955855975,-722.79,0.00019287,2]
[373344779,1752955855984,-480.0,0.00019287,2]
[373344780,1752955855994,-11437.6,0.00019287,2]
[373344781,1752955856004,-3731.84,0.00019287,2]
[373344782,1752955856013,-1833.75,0.00019287,2]
[373344783,1752955856023,-480.0,0.00019287,2]
[373344784,1752955856032,-630.3,0.00019287,2]
[373344785,1752955856042,-1460.63,0.00019287,2]
[373344786,1752955856053,-480.0,0.00019287,2]
[373344787,1752955856065,-1307.72,0.00019287,2]
[373344788,1752955856075,-964.88,0.00019287,2]
[373344789,1752955856084,-480.0,0.00019287,2]
[373344790,1752955856095,-1499.62,0.00019287,2]
[373344791,1752955856104,-1176.67,0.00019287,2]
[373344792,1752955856114,-618.52,0.00019287,2]
[373344793,1752955856124,-500.0,0.00019287,2]
[373344794,1752955856135,-480.0,0.00019287,2]
[373344795,1752955856145,-480.0,0.00019287,2]
[373344796,1752955856155,-3271.93,0.00019287,2]
[373344797,1752955856165,-1139.79,0.00019287,2]
[373344798,1752955856175,-500.0,0.00019287,2]
[373344799,1752955856185,-480.0,0.00019287,2]
[373344800,1752955856195,-2589.79,0.00019287,2]
[373344801,1752955856205,-500.0,0.00019287,2]
[373344802,1752955856214,-480.0,0.00019287,2]
[373344803,1752955856224,-1009.32,0.00019287,2]
[373344804,1752955856234,-937.67,0.00019287,2]
[373344805,1752955856243,-151.0,0.00019287,2]
[373344806,1752955856253,-480.0,0.00019287,2]
[373344807,1752955856263,-1892.94,0.00019287,2]
[373344808,1752955856272,-666.32,0.00019287,2]
[373344809,1752955856282,-500.0,0.00019287,2]
[373344810,1752955856291,-6507.7,0.00019287,2]
[373344811,1752955856301,-480.0,0.00019287,2]
[373344812,1752955856311,-967.47,0.00019287,2]
[373344813,1752955856321,-480.0,0.00019287,2]
[373344814,1752955856331,-1115.24,0.00019287,2]
[373344815,1752955856340,-480.0,0.00019287,2]
[373344816,1752955856349,-480.0,0.00019287,2]